bitfinex/quotes_SOLUSD_20241223
["timestamp","ask_amount","ask_price","bid_price","bid_amount"]
[1734952912148,20.0,184.95,184.86,12.6576779]
[1734952912337,20.0,184.95,184.88,23.776884]
[1734952913847,0.87421616,184.94,184.84,13.46881487]
[1734952914059,0.87421616,184.94,184.85,23.776884]
[1734952915827,0.87421616,184.94,184.86,0.8112033]
[1734952916033,20.0,184.95,184.86,0.8112033]
[1734952916350,20.0,184.95,184.88,23.776884]
[1734952916819,20.0,184.95,184.89,23.776884]
[1734952918648,6.1084,184.98,184.91,23.776884]
[1734952918818,6.1084,184.98,184.92,0.81087498]
[1734952923054,6.2593,185.05,184.95,12.6576779]
[1734952923236,6.2593,185.05,184.97,23.776884]
[1734952927555,6.2593,185.05,184.96,0.81061267]
[1734952927761,6.2593,185.05,184.86,26.1810779]
[1734952927762,20.0,185.02,184.91,0.81065729]
[1734952928057,2.39591616,185.01,184.87,0.81092065]
[1734952928252,2.39591616,185.01,184.88,12.6576779]
[1734952928456,2.39591616,185.01,184.87,0.81092065]
[1734952929744,20.0,184.97,184.85,0.81106108]
[1734952929948,0.87421616,184.96,184.85,0.81106108]
[1734952930768,0.87421616,184.96,184.84,13.46882598]
[1734952931058,0.87421616,184.96,184.85,23.776884]
[1734952931235,0.87421616,184.96,184.87,23.776884]
[1734952931960,20.0,184.97,184.89,23.776884]
[1734952932268,6.5473,185.0,184.91,23.776884]
[1734952932432,0.87421616,184.99,184.91,23.776884]
[1734952932642,7.42151616,185.0,184.9,0.81095011]
[1734952932943,0.87421616,184.98,184.87,12.6576779]
[1734952933147,0.87421616,184.98,184.89,23.776884]
[1734952933669,20.0,184.97,184.89,23.776884]
[1734952936369,20.0,184.97,184.9,0.81100645]
[1734952937470,20.0,184.97,184.91,23.776884]
[1734952937764,6.5473,185.0,184.92,0.81088703]
[1734952937969,7.42151616,185.0,184.91,23.776884]
[1734952938269,6.5473,185.0,184.91,23.776884]
[1734952939469,7.42151616,185.0,184.91,23.776884]
[1734952939651,6.5473,185.0,184.91,23.776884]
[1734952939852,20.0,184.97,184.86,0.81086814]
[1734952940051,20.0,184.97,184.87,24.58796105]
[1734952941370,6.5473,185.0,184.88,12.6576779]
[1734952941555,6.5473,185.0,184.89,24.58774138]
[1734952942254,6.5473,185.0,184.92,36.4345619]
[1734952942568,6.5473,185.0,184.93,0.81074112]
[1734952942752,6.5473,185.0,184.92,23.776884]
[1734952943346,6.5473,185.0,184.91,23.776884]
[1734952943542,6.5473,185.0,184.93,23.776884]
[1734952943951,0.87421616,184.99,184.88,13.46852831]
[1734952944154,6.5473,185.0,184.88,13.46852831]
[1734952945079,6.5473,185.0,184.9,12.6576779]
[1734952945376,6.5473,185.0,184.92,36.4345619]
[1734952945548,6.5473,185.0,184.94,23.776884]
[1734952945950,6.5473,185.0,184.96,23.776884]
[1734952946271,1.5217,185.01,184.97,0.81067776]
[1734952946571,1.5217,185.01,184.96,23.776884]
[1734952947375,1.5217,185.01,184.92,23.776884]
[1734952947755,0.87421616,185.0,184.89,12.6576779]
[1734952948363,0.87421616,185.0,184.89,20.0]
[1734952948560,0.87421616,185.0,184.9,20.0]
[1734952949693,0.87421616,185.0,184.91,23.776884]
[1734952950185,21.5217,185.01,184.93,23.776884]
[1734952951385,0.87421616,185.0,184.93,23.776884]
[1734952951691,0.87421616,185.0,184.9,0.81083636]
[1734952952374,0.87421616,185.0,184.91,23.776884]
[1734952955891,1.5217,185.01,184.93,23.776884]
[1734952956803,1.5217,185.01,184.95,23.776884]
[1734952956966,1.5217,185.01,184.95,0.81072902]
[1734952958194,1.5217,185.01,184.96,23.776884]
[1734952958382,1.5217,185.01,184.97,0.8106825]
[1734952958566,6.5525,185.04,184.97,0.8106825]
[1734952958767,6.5525,185.04,184.98,23.776884]
[1734952959889,6.5525,185.04,184.97,0.8106825]
[1734952960090,0.87421616,185.03,184.91,36.4345619]
[1734952960294,0.87421616,185.03,184.9,0.8106082]
[1734952960295,6.5525,185.04,184.95,24.58767368]
[1734952962969,0.87421616,185.03,184.95,24.58767368]
[1734952963995,6.5525,185.04,184.95,24.58767368]
[1734952964193,7.42671616,185.04,184.95,24.58767368]
[1734952965494,20.0,185.01,184.9,0.81074771]
[1734952965687,20.0,185.01,184.91,36.4345619]
[1734952965865,20.0,185.01,184.93,23.776884]
[1734952966376,1.5808,184.99,184.89,0.81086915]
[1734952966577,0.87421616,184.98,184.87,0.81103796]
[1734952966977,0.87421616,184.98,184.84,138.2594]
[1734952966978,20.0,184.94,184.85,0.81104392]
[1734952967981,0.87421616,184.93,184.83,0.8111784]
[1734952968898,1.5703,184.92,184.83,0.8111784]
[1734952969200,1.5703,184.92,184.87,36.4345619]
[1734952969377,1.5703,184.92,184.88,0.81103708]
[1734952969569,7.6435,184.97,184.89,23.776884]
[1734952970093,0.87421616,184.96,184.89,23.776884]
[1734952970399,0.87421616,184.96,184.85,12.6576779]
[1734952970570,0.87421616,184.96,184.87,23.776884]
[1734952973587,0.87421616,184.96,184.87,36.4345619]
[1734952973903,7.6435,184.97,184.88,0.81108066]
[1734952974808,7.6435,184.97,184.89,23.776884]
[1734952976000,7.6435,184.97,184.88,0.81108066]
[1734952976196,0.87421616,184.96,184.87,23.776884]
[1734952978391,7.6435,184.97,184.88,0.81107729]
[1734952978786,7.6435,184.97,184.89,23.776884]
[1734952981600,7.6435,184.97,184.91,23.776884]
[1734952981808,7.6435,184.97,184.92,0.8108943]
[1734952982999,1.5703,184.97,184.93,23.776884]
[1734952983196,1.5703,184.97,184.94,0.8108056]
[1734952983510,20.0,184.99,184.94,0.8108056]
[1734952984385,20.0,184.99,184.93,23.776884]
[1734952984586,0.87421616,184.98,184.89,23.776884]
[1734952984787,0.87421616,184.98,184.89,24.58788212]
[1734952984994,0.87421616,184.98,184.85,12.6576779]
[1734952985284,0.87421616,184.98,184.86,0.81108425]
[1734952985701,0.87421616,184.98,184.86,13.46876215]
[1734952986489,6.4203,184.96,184.83,13.46875326]
[1734952986701,20.0,184.93,184.83,13.46875326]
[1734952987401,0.87421616,184.92,184.81,0.8112323]
[1734952988087,1.5536,184.91,184.81,0.8112323]
[1734952988282,0.87421616,184.9,184.78,13.46904279]
[1734952988590,20.0,184.86,184.75,0.81140601]
[1734952988791,1.5536,184.84,184.75,0.81140601]
[1734952989009,0.87421616,184.83,184.73,0.81163258]
[1734952989886,0.87421616,184.83,184.72,0.81172659]
[1734952990197,1.5536,184.84,184.75,12.6576779]
[1734952990395,1.5536,184.84,184.76,0.81157033]
[1734952990797,1.5536,184.84,184.77,23.776884]
[1734952991781,1.5536,184.84,184.78,0.81157875]
[1734952992006,1.5623,184.88,184.79,23.776884]
[1734952992208,1.5623,184.88,184.78,13.46925665]
[1734952992209,1.5623,184.88,184.81,23.776884]
[1734952992790,2.43651616,184.88,184.81,23.776884]
[1734952993408,1.5623,184.88,184.81,23.776884]
[1734952995185,1.5623,184.88,184.82,0.81138192]
[1734952995586,1.5623,184.88,184.83,23.776884]
[1734952996614,8.1489,184.94,184.85,23.776884]
[1734952996800,8.1489,184.94,184.86,0.81113307]
[1734952997704,8.1489,184.94,184.87,23.776884]
[1734952999318,0.87421616,184.93,184.82,20.0]
[1734952999513,0.87421616,184.93,184.84,23.776884]
[1734953000517,8.1489,184.94,184.84,0.81120348]
[1734953000717,8.1489,184.94,184.85,23.776884]
[1734953002522,8.1489,184.94,184.87,23.776884]
[1734953002695,8.1489,184.94,184.89,23.776884]
[1734953008932,8.1489,184.94,184.86,0.81102641]
[1734953009239,8.1489,184.94,184.87,23.776884]
[1734953009827,8.1489,184.94,184.84,0.81106666]
[1734953010019,0.87421616,184.93,184.84,0.81106666]
[1734953010223,8.1489,184.94,184.84,0.81106666]
[1734953010408,8.1489,184.94,184.85,12.6576779]
[1734953010730,1.5649,184.94,184.86,0.81101307]
[1734953011138,1.5649,184.94,184.87,23.776884]
[1734953011906,1.5649,184.94,184.84,0.81116998]
[1734953012111,1.5649,184.94,184.85,23.776884]
[1734953012531,1.5649,184.94,184.86,0.81115186]
[1734953014007,1.5649,184.94,184.87,23.776884]
[1734953014199,1.5649,184.94,184.89,23.776884]
[1734953014531,1.5649,184.94,184.84,20.0]
[1734953014737,1.5649,184.94,184.83,23.776884]
[1734953015106,1.5649,184.94,184.85,23.776884]
[1734953016005,1.5649,184.94,184.87,23.776884]
[1734953019631,0.87421616,184.93,184.81,20.81114716]
[1734953019808,0.87421616,184.93,184.82,12.6576779]
[1734953020010,0.87421616,184.93,184.83,0.81121254]
[1734953020628,1.5649,184.94,184.83,0.81121254]
[1734953020834,1.5649,184.94,184.84,23.776884]
[1734953021139,1.5649,184.94,184.86,23.776884]
[1734953021303,1.5649,184.94,184.88,23.776884]
[1734953022509,1.5649,184.94,184.82,12.6576779]
[1734953022711,1.5649,184.94,184.83,24.58809221]
[1734953023149,1.5649,184.94,184.84,12.6576779]
[1734953023333,1.5649,184.94,184.85,24.58792458]
[1734953031858,1.5649,184.94,184.86,0.12549]
[1734953032019,8.081,184.98,184.88,23.776884]
[1734953032223,8.081,184.98,184.9,23.776884]
[1734953032527,8.081,184.98,184.91,0.81090376]
[1734953035655,8.081,184.98,184.9,23.776884]
[1734953036457,8.081,184.98,184.89,0.81092433]
[1734953036458,0.87421616,184.97,184.89,0.81092433]
[1734953036748,0.87421616,184.97,184.87,20.0]
[1734953038655,20.0,184.95,184.86,23.776884]
[1734953038951,0.87421616,184.94,184.86,23.776884]
[1734953039130,0.87421616,184.94,184.84,0.81116241]
[1734953039334,0.87421616,184.94,184.85,23.776884]
[1734953039962,0.87421616,184.94,184.83,0.8111697]
[1734953040122,1.6366,184.93,184.8,0.81127707]
[1734953040321,0.87421616,184.92,184.8,0.81127707]
[1734953041437,0.87421616,184.92,184.81,23.776884]
[1734953041827,0.87421616,184.92,184.81,0.81137007]
[1734953045963,20.0,184.88,184.77,8.10044086]
[1734953046127,2.53431616,184.87,184.77,23.776884]
[1734953046963,2.53431616,184.87,184.76,0.81135168]
[1734953047355,2.53431616,184.87,184.74,0.81160038]
[1734953048657,2.53431616,184.87,184.75,23.776884]
[1734953049348,20.0,184.83,184.68,2.15165468]
[1734953049536,20.0,184.78,184.69,0.81176811]
[1734953049737,1.645,184.76,184.67,9.19783749]
[1734953050143,0.87421616,184.75,184.67,9.19783749]
[1734953050539,0.87421616,184.75,184.67,0.81186663]
[1734953050746,1.645,184.76,184.65,0.81200452]
[1734953051752,2.51921616,184.76,184.65,0.81200452]
[1734953052261,2.51921616,184.76,184.66,23.776884]
[1734953052445,2.51921616,184.76,184.67,0.81195425]
[1734953052760,1.645,184.76,184.67,0.81195425]
[1734953054365,0.87421616,184.75,184.65,0.81197526]
[1734953054549,0.87421616,184.75,184.66,23.776884]
[1734953054746,1.645,184.76,184.66,23.776884]
[1734953055064,0.87421616,184.75,184.66,23.776884]
[1734953055238,1.645,184.76,184.66,23.776884]
[1734953055565,1.645,184.76,184.67,0.81197557]
[1734953056234,1.645,184.76,184.68,23.776884]
[1734953056435,1.645,184.76,184.69,0.81180155]
[1734953057252,1.645,184.76,184.7,23.776884]
[1734953057567,1.645,184.76,184.71,0.81177355]
[1734953057963,6.6265,184.81,184.72,23.776884]
[1734953058175,1.5315,184.8,184.73,0.81163758]
[1734953058474,1.5315,184.8,184.74,23.776884]
[1734953059873,2.40571616,184.8,184.71,23.776884]
[1734953060875,1.5315,184.8,184.71,23.776884]
[1734953061677,2.40571616,184.8,184.71,23.776884]
[1734953061977,1.5315,184.8,184.71,23.776884]
[1734953062373,1.5315,184.8,184.72,0.8117484]
[1734953062973,1.5315,184.8,184.73,36.46037565]
[1734953063145,1.5315,184.8,184.74,13.49504607]
[1734953063352,1.5315,184.8,184.75,23.776884]
[1734953063550,1.5315,184.8,184.76,0.81149746]
[1734953064503,8.0716,184.85,184.77,23.776884]
[1734953066651,0.87421616,184.84,184.73,12.68349165]
[1734953067003,0.87421616,184.84,184.73,20.0]
[1734953067275,8.0716,184.85,184.74,23.776884]
[1734953067467,8.0716,184.85,184.75,0.81156957]
[1734953067665,8.0716,184.85,184.76,23.776884]
[1734953067863,8.0716,184.85,184.78,23.776884]
[1734953068051,8.0716,184.85,184.79,0.81137189]
[1734953068671,8.0716,184.85,184.78,23.776884]
[1734953069191,8.0716,184.85,184.75,12.68349165]
[1734953069494,8.0716,184.85,184.77,23.776884]
[1734953069673,8.0716,184.85,184.78,0.81149979]
[1734953071188,11.94361505,184.9,184.81,12.68349165]
[1734953071354,11.94361505,184.9,184.82,37.27161917]
[1734953071355,8.0955,184.9,184.82,37.27161917]
[1734953071555,8.0955,184.9,184.82,24.58812752]
[1734953073996,1.5513,184.9,184.85,23.776884]
[1734953074197,1.5513,184.9,184.86,0.81108561]
[1734953074488,1.5103,184.94,184.87,23.776884]
[1734953074688,2.38451616,184.99,184.88,0.81102245]
[1734953076200,20.0,184.98,184.88,0.81102245]
[1734953078197,20.0,184.98,184.89,23.776884]
[1734953080473,0.87421616,184.97,184.88,0.81102245]
[1734953080775,0.87421616,184.97,184.87,23.776884]
[1734953081070,0.87421616,184.97,184.88,0.81106497]
[1734953081295,20.87421616,184.98,184.88,0.81106497]
[1734953081502,20.0,184.98,184.89,23.776884]
[1734953082804,20.0,184.98,184.9,0.81095466]
[1734953083175,20.87421616,184.98,184.89,23.776884]
[1734953084299,20.0,184.98,184.89,23.776884]
[1734953089907,20.0,184.98,184.9,0.81098689]
[1734953095310,20.0,184.98,184.89,23.776884]
[1734953095607,20.0,184.98,184.88,23.776884]
[1734953095805,20.0,184.98,184.9,23.776884]
[1734953099344,20.0,184.98,184.89,0.81099532]
[1734953099637,0.87421616,184.97,184.86,0.81098641]
[1734953100127,20.0,184.98,184.87,8.09847048]
[1734953100335,20.0,184.98,184.88,0.81089964]
[1734953100802,20.0,184.98,184.89,23.776884]
[1734953101006,1.5103,184.99,184.91,23.776884]
[1734953101200,1.5103,184.99,184.93,23.776884]
[1734953101421,6.113,185.01,184.95,23.776884]
[1734953101918,0.87421616,185.0,184.89,23.776884]
[1734953102120,1.6405,184.99,184.88,23.776884]
[1734953102333,0.87421616,184.98,184.84,8.90957578]
[1734953102702,20.87421616,184.98,184.84,8.90957578]
[1734953103529,20.87421616,184.98,184.84,0.8111053]
[1734953103712,20.0,184.94,184.83,0.81120974]
[1734953104820,20.0,184.94,184.84,23.776884]
[1734953105007,20.0,184.94,184.86,23.776884]
[1734953105640,20.0,184.94,184.85,0.81118893]
[1734953105829,20.0,184.94,184.82,0.81120485]
[1734953105830,0.87421616,184.93,184.82,0.81120485]
[1734953106026,0.87421616,184.93,184.83,23.776884]
[1734953106541,20.0,184.94,184.85,23.776884]
[1734953106748,20.0,184.94,184.86,0.81116005]
[1734953107224,0.87421616,184.93,184.85,23.776884]
[1734953107839,20.0,184.94,184.85,23.776884]
[1734953108242,0.87421616,184.93,184.85,23.776884]
[1734953109440,20.0,184.94,184.85,23.776884]
[1734953109642,20.0,184.94,184.86,0.8111666]
[1734953109815,20.0,184.94,184.87,23.776884]
[1734953110546,1.6405,184.96,184.88,0.81103171]
[1734953111223,2.51471616,184.96,184.87,23.776884]
[1734953111847,20.0,184.94,184.84,0.8110988]
[1734953112145,20.0,184.94,184.85,23.776884]
[1734953112309,20.0,184.94,184.86,0.81112028]
[1734953113507,20.0,184.94,184.87,23.776884]
[1734953113751,20.0,184.94,184.88,0.81102688]
[1734953115044,1.6405,184.96,184.89,23.776884]
[1734953117557,1.6405,184.96,184.9,0.81099986]
[1734953118853,1.6405,184.96,184.91,23.776884]
[1734953120518,1.6405,184.96,184.92,0.81088804]
[1734953121160,1.6405,184.96,184.9,23.776884]
[1734953123521,1.6405,184.96,184.92,23.776884]
[1734953126154,1.6405,184.96,184.88,0.81094124]
[1734953126358,1.6405,184.96,184.86,23.776884]
[1734953126653,20.0,184.91,184.87,0.81105051]
[1734953126823,20.0,184.91,184.82,0.8111911]
[1734953127028,1.5705,184.9,184.8,0.81130366]
[1734953127234,2.44471616,184.9,184.8,0.81130366]
[1734953127730,2.44471616,184.9,184.75,144.79847048]
[1734953127951,2.44471616,184.9,184.76,0.81149098]
[1734953128466,2.44471616,184.9,184.72,33.5337]
[1734953128467,20.0,184.86,184.7,8.09847048]
[1734953128645,0.87421616,184.85,184.71,0.81167246]
[1734953129026,1.5705,184.84,184.71,0.81167246]
[1734953129226,0.87421616,184.83,184.71,0.81167246]
[1734953129443,1.5705,184.84,184.71,8.91014294]
[1734953130155,1.5705,184.84,184.72,8.09847048]
[1734953130333,1.5705,184.84,184.73,0.81156218]
[1734953130743,1.5705,184.84,184.74,23.776884]
[1734953131062,1.5705,184.84,184.76,23.776884]
[1734953131655,1.5705,184.84,184.77,0.81155799]
[1734953131968,1.5705,184.84,184.78,23.776884]
[1734953133644,20.0,184.86,184.78,23.776884]
[1734953133842,20.0,184.86,184.8,23.776884]
[1734953134044,20.0,184.86,184.77,136.7]
[1734953134360,20.0,184.86,184.78,23.776884]
[1734953136762,20.0,184.86,184.78,24.58837695]
[1734953138377,20.0,184.86,184.78,23.776884]
[1734953138664,0.87421616,184.88,184.74,8.09847048]
[1734953138665,7.7731,184.89,184.8,23.776884]
[1734953138961,7.7731,184.89,184.82,23.776884]
[1734953139336,7.7731,184.89,184.83,0.81126833]
[1734953140668,8.1806,184.94,184.84,23.776884]
[1734953140867,8.1806,184.94,184.86,23.776884]
[1734953141038,8.1806,184.94,184.87,0.81108169]
[1734953141236,8.1806,184.94,184.86,23.776884]
[1734953143859,8.1806,184.94,184.88,23.776884]
[1734953146781,1.536,184.94,184.89,0.8109969]
[1734953148275,27.8152,184.98,184.9,23.776884]
[1734953151687,27.8152,184.98,184.91,0.81092642]
[1734953152259,27.8152,184.98,184.92,23.776884]
[1734953160275,0.87421616,184.97,184.87,136.7]
[1734953160601,27.8152,184.98,184.88,0.81102696]
[1734953161499,0.87421616,184.97,184.84,21.642354]
[1734953161672,0.87421616,184.97,184.8,8.09847048]
[1734953161673,1.6426,184.96,184.8,8.09847048]
[1734953161991,20.0,184.94,184.79,137.51118231]
[1734953162195,20.87421616,184.93,184.79,144.79847048]
[1734953162572,20.87421616,184.93,184.8,8.09847048]
[1734953162766,20.87421616,184.93,184.81,0.81124045]
[1734953163203,20.87421616,184.93,184.82,23.776884]
[1734953163785,20.87421616,184.93,184.81,0.81124045]
[1734953163786,7.6691,184.92,184.81,23.776884]
[1734953164100,20.0,184.89,184.75,8.09847048]
[1734953164285,0.87421616,184.88,184.76,0.81150258]
[1734953165170,20.0,184.89,184.77,20.0]
[1734953165509,20.0,184.89,184.78,0.81138579]
[1734953165997,0.87421616,184.88,184.78,0.81138579]
[1734953166300,20.0,184.89,184.79,20.0]
[1734953166496,20.0,184.89,184.8,0.81138897]
[1734953166669,0.87421616,184.88,184.78,23.776884]
[1734953167186,1.6518,184.87,184.77,23.776884]
[1734953167393,20.0,184.82,184.7,136.7]
[1734953167572,0.87421616,184.81,184.69,2.17525734]
[1734953167781,1.6518,184.8,184.7,0.8117779]
[1734953168576,1.6518,184.8,184.7,8.91024838]
[1734953169199,1.6518,184.8,184.71,23.776884]
[1734953169408,1.6518,184.8,184.72,0.81174833]
[1734953171507,1.6518,184.8,184.73,23.776884]
[1734953171713,1.6518,184.8,184.74,0.81163272]
[1734953171883,1.6518,184.8,184.75,23.776884]
[1734953177832,8.80381616,184.85,184.75,23.776884]
[1734953178936,7.9296,184.85,184.75,23.776884]
[1734953182750,7.9296,184.85,184.74,23.776884]
[1734953183605,20.0,184.82,184.74,23.776884]
[1734953184120,0.87421616,184.84,184.74,23.776884]
[1734953184665,20.0,184.82,184.74,23.776884]
[1734953189843,0.87421616,184.81,184.68,136.7]
[1734953190010,2.40801616,184.81,184.69,0.81183888]
[1734953190216,20.0,184.79,184.69,0.81183888]
[1734953190433,0.87421616,184.78,184.69,0.81183888]
[1734953190932,0.87421616,184.78,184.67,0.81189939]
[1734953191822,0.87421616,184.78,184.68,23.776884]
[1734953192025,20.0,184.79,184.7,23.776884]
[1734953193043,0.87421616,184.78,184.7,23.776884]
[1734953193616,20.0,184.79,184.7,23.776884]
[1734953195552,0.87421616,184.78,184.7,23.776884]
[1734953195926,6.1346,184.77,184.7,23.776884]
[1734953196342,1.5993,184.76,184.7,23.776884]
[1734953196735,2.47351616,184.76,184.68,23.776884]
[1734953197864,1.5993,184.76,184.67,23.776884]
[1734953198432,20.0,184.74,184.67,23.776884]
[1734953201271,1.5993,184.76,184.67,23.776884]
[1734953201647,1.5993,184.76,184.69,23.776884]
[1734953203373,1.5993,184.76,184.69,31.87535448]
[1734953203574,1.5993,184.76,184.71,23.776884]
[1734953204261,1.5993,184.76,184.69,23.776884]
[1734953204852,20.0,184.74,184.65,0.81185496]
[1734953205054,0.87421616,184.73,184.63,0.81201648]
[1734953206251,0.87421616,184.73,184.64,23.776884]
[1734953206580,20.87421616,184.73,184.64,23.776884]
[1734953209579,20.87421616,184.73,184.63,23.776884]
[1734953210189,20.87421616,184.73,184.63,24.5890177]
[1734953210888,20.87421616,184.73,184.62,23.776884]
[1734953212402,20.87421616,184.73,184.62,31.87535448]
[1734953212580,1.5551,184.72,184.61,23.776884]
[1734953212778,20.0,184.68,184.59,4.1990019]
[1734953212995,0.87421616,184.67,184.59,4.1990019]
[1734953213499,1.5551,184.66,184.59,4.1990019]
[1734953213706,2.42931616,184.66,184.59,4.1990019]
[1734953214073,20.0,184.62,184.59,4.1990019]
[1734953215505,0.87421616,184.61,184.59,4.1990019]
[1734953215706,20.0,184.62,184.59,4.1990019]
[1734953217414,0.87421616,184.61,184.59,4.1990019]
[1734953217912,20.87421616,184.61,184.59,4.1990019]
[1734953218100,1.5189,184.6,184.59,4.1990019]
[1734953218500,1.5189,184.6,184.59,2.3151019]
[1734953218698,20.0,184.57,184.52,5.0]
[1734953219006,0.87421616,184.56,184.52,5.0]
[1734953219409,20.0,184.57,184.52,5.0]
[1734953221903,0.87421616,184.56,184.52,5.0]
[1734953222521,20.0,184.57,184.52,5.0]
[1734953222686,0.87421616,184.56,184.52,5.0]
[1734953223717,20.0,184.57,184.52,5.0]
[1734953224400,0.87421616,184.56,184.52,5.0]
[1734953224796,20.0,184.55,184.52,5.0]
[1734953225000,0.87421616,184.54,184.52,5.0]
[1734953225319,7.36588072,184.58,184.52,5.0]
[1734953225510,0.87421616,184.59,184.52,5.0]
[1734953227017,1.5189,184.6,184.53,23.776884]
[1734953228517,0.87421616,184.63,184.53,23.776884]
[1734953229022,20.0,184.61,184.52,5.0]
[1734953229319,0.87421616,184.6,184.52,5.0]
[1734953236218,20.0,184.61,184.52,5.0]
[1734953236419,0.87421616,184.6,184.52,5.0]
[1734953236588,20.0,184.61,184.53,23.776884]
[1734953238317,1.59235795,184.63,184.53,23.776884]
[1734953238530,1.59235795,184.63,184.55,23.776884]
[1734953239127,0.50737198,184.63,184.55,23.776884]
[1734953241016,20.0,184.65,184.57,23.776884]
[1734953241521,1.95920213,184.67,184.57,23.776884]
[1734953241829,1.08498597,184.67,184.57,23.776884]
[1734953242131,1.38158814,184.68,184.59,23.776884]
[1734953243116,20.0,184.66,184.59,23.776884]
[1734953245828,20.0,184.66,184.58,0.81230886]
[1734953245997,20.0,184.66,184.56,23.776884]
[1734953246200,20.0,184.66,184.58,23.776884]
[1734953248228,20.0,184.66,184.6,23.776884]
[1734953248953,0.50737198,184.68,184.6,24.58919947]
[1734953249252,5.45395125,184.69,184.6,24.58919947]
[1734953249843,0.87421616,184.72,184.6,24.58919947]
[1734953250148,20.0,184.7,184.6,24.58919947]
[1734953251323,0.87421616,184.69,184.6,24.58919947]
[1734953251639,0.87421616,184.69,184.6,23.776884]
[1734953255141,0.87421616,184.69,184.59,1.6289]
[1734953257344,0.87421616,184.69,184.6,23.776884]
[1734953257821,0.87421616,184.72,184.6,24.58913833]
[1734953259117,0.87421616,184.72,184.6,23.776884]
[1734953259648,20.0,184.7,184.6,23.776884]
[1734953259947,0.87421616,184.69,184.59,1.6289]
[1734953264553,0.87421616,184.69,184.6,23.776884]
[1734953268330,0.87421616,184.69,184.59,1.6289]
[1734953269850,0.87421616,184.69,184.6,23.776884]
[1734953270038,20.0,184.7,184.62,23.776884]
[1734953271158,5.2702134,184.73,184.62,23.776884]
[1734953271454,6.32816741,184.74,184.65,8.2703]
[1734953271620,1.96930873,184.75,184.66,23.776884]
[1734953272157,1.09509257,184.75,184.66,23.776884]
[1734953272359,0.87421616,184.77,184.66,23.776884]
[1734953272745,0.87421616,184.77,184.68,23.776884]
[1734953272938,7.27046161,184.78,184.69,0.81190515]
[1734953273267,7.27046161,184.78,184.7,23.776884]
[1734953273556,7.27046161,184.78,184.66,0.81192763]
[1734953273764,7.27046161,184.78,184.67,23.776884]
[1734953274066,20.0,184.75,184.67,23.776884]
[1734953274863,0.87421616,184.74,184.67,23.776884]
[1734953275031,0.87421616,184.74,184.65,8.2703]
[1734953276351,0.87421616,184.74,184.66,23.776884]
[1734953276737,0.87421616,184.74,184.65,8.2703]
[1734953279368,0.87421616,184.74,184.61,1.6399]
[1734953280864,0.87421616,184.74,184.62,23.776884]
[1734953283347,20.0,184.7,184.61,1.6399]
[1734953283553,0.87421616,184.69,184.56,1.5995]
[1734953284151,0.87421616,184.69,184.56,9.69797048]
[1734953284865,0.87421616,184.69,184.57,23.776884]
[1734953285079,0.87421616,184.69,184.57,24.58930596]
[1734953288479,0.87421616,184.69,184.56,9.69797048]
[1734953288771,20.0,184.66,184.56,1.5995]
[1734953288976,0.87421616,184.65,184.56,1.5995]
[1734953289136,20.0,184.64,184.53,0.81251215]
[1734953289334,0.87421616,184.63,184.53,0.81251215]
[1734953289539,0.87421616,184.63,184.53,8.91098263]
[1734953289785,0.87421616,184.63,184.54,23.776884]
[1734953289962,0.87421616,184.63,184.53,8.91098263]
[1734953291081,0.87421616,184.63,184.53,0.81251215]
[1734953291250,0.87421616,184.63,184.52,6.5703]
[1734953291453,0.87421616,184.63,184.52,7.38295352]
[1734953291845,0.87421616,184.63,184.52,15.481424]
[1734953292045,0.87421616,184.63,184.52,6.5703]
[1734953292776,0.87421616,184.63,184.52,15.48147803]
[1734953293375,0.87421616,184.63,184.53,23.776884]
[1734953294870,0.87421616,184.66,184.55,23.776884]
[1734953295084,1.5085,184.67,184.58,8.09847048]
[1734953295263,1.5085,184.67,184.59,8.91078643]
[1734953295451,1.5085,184.67,184.59,0.81231595]
[1734953296979,6.0024111,184.69,184.6,23.776884]